[Event "Titled Tuesday Blitz April 4 Late 2023"]
[White "Yanayt, Eugene"]
[Black "ritanovikova"]
[WhiteFideId "2020165"]
[WhiteElo "2083"]
[BlackElo "2219"]
[Result "1-0"]
[Round "06"]
[TimeControl "180+2"]
[Date "2023.04.04"]
[WhiteClock "0:00:22"]
[BlackClock "0:00:09"]

1. d4 {[%clk 0:02:53]}  d5 {[%clk 0:03:00]} 2. c4 {[%clk 0:02:52]}  dxc4 {[%clk 0:03:00]} 3. Nf3 {[%clk 0:02:52]}  Nf6 {[%clk 0:03:00]} 4. g3 {[%clk 0:02:52]}  c5 {[%clk 0:02:54]} 5. Bg2 {[%clk 0:02:49]}  Nc6 {[%clk 0:02:52]} 6. Qa4 {[%clk 0:02:48]}  Qa5+ {[%clk 0:02:49]} 7. Qxa5 {[%clk 0:02:48]}  Nxa5 {[%clk 0:02:49]} 8. dxc5 {[%clk 0:02:47]}  e6 {[%clk 0:02:41]} 9. Bd2 {[%clk 0:02:48]}  Nc6 {[%clk 0:02:37]} 10. Na3 {[%clk 0:02:48]}  Bxc5 {[%clk 0:02:34]} 11. Nxc4 {[%clk 0:02:43]}  O-O {[%clk 0:02:32]} 12. O-O {[%clk 0:02:43]}  Nd4 {[%clk 0:02:15]} 13. Nxd4 {[%clk 0:02:37]}  Bxd4 {[%clk 0:02:16]} 14. Bb4 {[%clk 0:02:34]}  Rd8 {[%clk 0:02:00]} 15. Rad1 {[%clk 0:02:17]}  Rd7 {[%clk 0:01:31]} 16. Nd6 {[%clk 0:01:53]}  e5 {[%clk 0:01:18]} 17. Nxc8 {[%clk 0:01:41]}  Rxc8 {[%clk 0:01:14]} 18. Bh3 {[%clk 0:01:41]}  Rdc7 {[%clk 0:01:04]} 19. Bxc8 {[%clk 0:01:40]}  Rxc8 {[%clk 0:01:05]} 20. Bc3 {[%clk 0:01:37]}  Bxc3 {[%clk 0:00:59]} 21. bxc3 {[%clk 0:01:37]}  g6 {[%clk 0:00:58]} 22. Rd3 {[%clk 0:01:25]}  e4 {[%clk 0:00:54]} 23. Rd6 {[%clk 0:01:25]}  Kg7 {[%clk 0:00:53]} 24. Rb1 {[%clk 0:01:24]}  b6 {[%clk 0:00:52]} 25. Rb3 {[%clk 0:01:23]}  e3 {[%clk 0:00:48]} 26. f3 {[%clk 0:01:21]}  Rc4 {[%clk 0:00:41]} 27. Rd3 {[%clk 0:01:19]}  Ra4 {[%clk 0:00:36]} 28. a3 {[%clk 0:01:17]}  h5 {[%clk 0:00:31]} 29. Rxe3 {[%clk 0:01:16]}  h4 {[%clk 0:00:31]} 30. Rd3 {[%clk 0:01:13]}  hxg3 {[%clk 0:00:31]} 31. hxg3 {[%clk 0:01:13]}  Nh5 {[%clk 0:00:31]} 32. Kf2 {[%clk 0:01:13]}  Ra5 {[%clk 0:00:29]} 33. c4 {[%clk 0:01:11]}  Rc5 {[%clk 0:00:28]} 34. Rbc3 {[%clk 0:01:10]}  Nf6 {[%clk 0:00:27]} 35. e4 {[%clk 0:01:10]}  g5 {[%clk 0:00:27]} 36. Ke3 {[%clk 0:01:09]}  g4 {[%clk 0:00:26]} 37. f4 {[%clk 0:01:09]}  Nh5 {[%clk 0:00:26]} 38. Kd4 {[%clk 0:01:08]}  Rc8 {[%clk 0:00:26]} 39. e5 {[%clk 0:01:07]}  Rd8+ {[%clk 0:00:26]} 40. Ke4 {[%clk 0:01:07]}  Re8 {[%clk 0:00:26]} 41. Kf5 {[%clk 0:01:04]}  Kf8 {[%clk 0:00:23]} 42. Kxg4 {[%clk 0:01:02]}  Ng7 {[%clk 0:00:23]} 43. Rc1 {[%clk 0:01:00]}  Re6 {[%clk 0:00:22]} 44. Rcd1 {[%clk 0:00:55]}  Rg6+ {[%clk 0:00:22]} 45. Kf3 {[%clk 0:00:56]}  Nf5 {[%clk 0:00:22]} 46. Rd8+ {[%clk 0:00:51]}  Kg7 {[%clk 0:00:22]} 47. Rg1 {[%clk 0:00:38]}  Nh4+ {[%clk 0:00:20]} 48. Kf2 {[%clk 0:00:37]}  Nf5 {[%clk 0:00:18]} 49. Rd7 {[%clk 0:00:36]}  Nh6 {[%clk 0:00:18]} 50. Rg2 {[%clk 0:00:33]}  Ng4+ {[%clk 0:00:17]} 51. Kf3 {[%clk 0:00:32]}  Nh6 {[%clk 0:00:16]} 52. g4 {[%clk 0:00:32]}  Kf8 {[%clk 0:00:14]} 53. f5 {[%clk 0:00:30]}  Rc6 {[%clk 0:00:13]} 54. f6 {[%clk 0:00:26]}  Kg8 {[%clk 0:00:13]} 55. Rh2 {[%clk 0:00:23]}  Kh7 {[%clk 0:00:09]} 56. Rxf7+ {[%clk 0:00:22]}  Kg6 {[%clk 0:00:09]} 57. Rg7# {[%clk 0:00:22]} 1-0


[Site "https://www.chess.com"]

[Event "Titled Tuesday Blitz April 4 Late 2023"]
[White "Srdanovic, Jovana"]
[Black "ArchibaldCerveza29"]
[WhiteFideId "954810"]
[WhiteElo "2145"]
[BlackElo "2414"]
[Result "0-1"]
[Round "06"]
[TimeControl "180+2"]
[Date "2023.04.04"]
[WhiteClock "0:00:15"]
[BlackClock "0:00:06"]

1. d4 {[%clk 0:03:00]}  d5 {[%clk 0:03:00]} 2. c4 {[%clk 0:02:58]}  e6 {[%clk 0:03:00]} 3. Nf3 {[%clk 0:02:58]}  Nf6 {[%clk 0:03:00]} 4. Nc3 {[%clk 0:02:59]}  c6 {[%clk 0:02:59]} 5. Bg5 {[%clk 0:02:59]}  Nbd7 {[%clk 0:02:59]} 6. cxd5 {[%clk 0:02:57]}  exd5 {[%clk 0:02:58]} 7. e3 {[%clk 0:02:58]}  h6 {[%clk 0:02:58]} 8. Bh4 {[%clk 0:02:57]}  Bd6 {[%clk 0:02:58]} 9. Bd3 {[%clk 0:02:58]}  O-O {[%clk 0:02:58]} 10. Qc2 {[%clk 0:02:59]}  Re8 {[%clk 0:02:58]} 11. O-O {[%clk 0:02:59]}  Nf8 {[%clk 0:02:57]} 12. Rab1 {[%clk 0:03:00]}  a6 {[%clk 0:02:56]} 13. Bg3 {[%clk 0:03:00]}  Bxg3 {[%clk 0:02:53]} 14. hxg3 {[%clk 0:03:01]}  Ne6 {[%clk 0:02:52]} 15. b4 {[%clk 0:03:00]}  Ng5 {[%clk 0:02:52]} 16. Nxg5 {[%clk 0:02:55]}  hxg5 {[%clk 0:02:53]} 17. Bf5 {[%clk 0:02:56]}  Ne4 {[%clk 0:02:38]} 18. Bxc8 {[%clk 0:02:37]}  Qxc8 {[%clk 0:02:32]} 19. Nxe4 {[%clk 0:02:37]}  Rxe4 {[%clk 0:02:32]} 20. a4 {[%clk 0:02:35]}  Re6 {[%clk 0:02:29]} 21. b5 {[%clk 0:02:34]}  axb5 {[%clk 0:02:29]} 22. axb5 {[%clk 0:02:35]}  Rh6 {[%clk 0:02:29]} 23. bxc6 {[%clk 0:02:33]}  bxc6 {[%clk 0:02:30]} 24. Rb6 {[%clk 0:02:30]}  g4 {[%clk 0:01:45]} 25. Rc1 {[%clk 0:02:18]}  Ra6 {[%clk 0:01:44]} 26. Rxa6 {[%clk 0:01:57]}  Qxa6 {[%clk 0:01:45]} 27. Qc5 {[%clk 0:01:57]}  Rf6 {[%clk 0:01:30]} 28. Qc2 {[%clk 0:01:54]}  Qa5 {[%clk 0:01:18]} 29. Rb1 {[%clk 0:01:52]}  g5 {[%clk 0:01:13]} 30. Rb8+ {[%clk 0:01:39]}  Kg7 {[%clk 0:01:13]} 31. Rb1 {[%clk 0:01:36]}  Qa8 {[%clk 0:01:09]} 32. Qe2 {[%clk 0:01:34]}  Qc8 {[%clk 0:01:06]} 33. e4 {[%clk 0:01:25]}  Re6 {[%clk 0:00:49]} 34. Qxg4 {[%clk 0:01:21]}  dxe4 {[%clk 0:00:47]} 35. Qxg5+ {[%clk 0:01:15]}  Kf8 {[%clk 0:00:44]} 36. Qf4 {[%clk 0:01:13]}  Qd7 {[%clk 0:00:32]} 37. Rb8+ {[%clk 0:01:11]}  Kg7 {[%clk 0:00:32]} 38. Qg4+ {[%clk 0:01:02]}  Kf6 {[%clk 0:00:18]} 39. Qh4+ {[%clk 0:00:59]}  Kf5 {[%clk 0:00:12]} 40. Qf4+ {[%clk 0:00:48]}  Kg6 {[%clk 0:00:10]} 41. Rg8+ {[%clk 0:00:48]}  Kh7 {[%clk 0:00:10]} 42. Rg4 {[%clk 0:00:39]}  Rh6 {[%clk 0:00:09]} 43. Qxe4+ {[%clk 0:00:38]}  f5 {[%clk 0:00:08]} 44. Qd3 {[%clk 0:00:33]}  Qe6 {[%clk 0:00:08]} 45. Rf4 {[%clk 0:00:29]}  Qe1+ {[%clk 0:00:08]} 46. Qf1 {[%clk 0:00:28]}  Rh1+ {[%clk 0:00:09]} 47. Kxh1 {[%clk 0:00:28]}  Qxf1+ {[%clk 0:00:10]} 48. Kh2 {[%clk 0:00:29]}  Kg6 {[%clk 0:00:09]} 49. f3 {[%clk 0:00:26]}  Qe1 {[%clk 0:00:09]} 50. Rh4 {[%clk 0:00:25]}  Qf2 {[%clk 0:00:09]} 51. Rf4 {[%clk 0:00:25]}  Qe3 {[%clk 0:00:09]} 52. Rh4 {[%clk 0:00:24]}  Kg5 {[%clk 0:00:09]} 53. Rh8 {[%clk 0:00:19]}  Qxd4 {[%clk 0:00:07]} 54. Rh4 {[%clk 0:00:18]}  Qf2 {[%clk 0:00:07]} 55. f4+ {[%clk 0:00:18]}  Kf6 {[%clk 0:00:07]} 56. Rh6+ {[%clk 0:00:18]}  Ke7 {[%clk 0:00:06]} 57. Rxc6 {[%clk 0:00:19]}  Kd7 {[%clk 0:00:07]} 58. Rh6 {[%clk 0:00:18]}  Qe1 {[%clk 0:00:07]} 59. Rh5 {[%clk 0:00:17]}  Ke6 {[%clk 0:00:06]} 60. Rh6+ {[%clk 0:00:17]}  Kd5 {[%clk 0:00:07]} 61. Rh5 {[%clk 0:00:18]}  Ke4 {[%clk 0:00:07]} 62. Rg5 {[%clk 0:00:17]}  Ke3 {[%clk 0:00:06]} 63. Rh5 {[%clk 0:00:18]}  Kf2 {[%clk 0:00:07]} 64. Rxf5 {[%clk 0:00:17]}  Qg1+ {[%clk 0:00:07]} 65. Kh3 {[%clk 0:00:17]}  Qxg2+ {[%clk 0:00:08]} 66. Kg4 {[%clk 0:00:18]}  Qxg3+ {[%clk 0:00:09]} 67. Kh5 {[%clk 0:00:18]}  Kf3 {[%clk 0:00:08]} 68. Rf7 {[%clk 0:00:16]}  Qh3+ {[%clk 0:00:07]} 69. Kg6 {[%clk 0:00:16]}  Qg4+ {[%clk 0:00:07]} 70. Kf6 {[%clk 0:00:16]}  Kxf4 {[%clk 0:00:06]} 71. Ke7+ {[%clk 0:00:15]}  Ke5 {[%clk 0:00:06]} 72. Kf8 {[%clk 0:00:15]}  Qc8+ {[%clk 0:00:06]} 73. Kg7 {[%clk 0:00:16]}  Qg4+ {[%clk 0:00:06]} 74. Kf8 {[%clk 0:00:16]}  Ke6 {[%clk 0:00:06]} 75. Re7+ {[%clk 0:00:16]}  Kd6 {[%clk 0:00:06]} 76. Rf7 {[%clk 0:00:16]}  Qg6 {[%clk 0:00:06]} 77. Ke8 {[%clk 0:00:15]}  Ke6 {[%clk 0:00:05]} 78. Kd8 {[%clk 0:00:15]}  Qxf7 {[%clk 0:00:06]} 0-1


[Site "https://www.chess.com"]

[Event "Titled Tuesday Blitz April 4 Late 2023"]
[White "Celestino, Rafael Teixeira"]
[Black "Barria Santos, Jose Guilherme"]
[WhiteFideId "2108925"]
[BlackFideId "1939300"]
[WhiteElo "2372"]
[BlackElo "2266"]
[Result "1-0"]
[Round "06"]
[TimeControl "180+2"]
[Date "2023.04.04"]
[WhiteClock "0:00:05"]
[BlackClock "0:00:14"]

1. e4 {[%clk 0:03:00]}  c5 {[%clk 0:02:59]} 2. Nf3 {[%clk 0:03:00]}  d6 {[%clk 0:02:59]} 3. d4 {[%clk 0:03:01]}  cxd4 {[%clk 0:03:00]} 4. Nxd4 {[%clk 0:03:01]}  Nf6 {[%clk 0:03:00]} 5. Nc3 {[%clk 0:03:02]}  a6 {[%clk 0:03:00]} 6. Bg5 {[%clk 0:03:02]}  e6 {[%clk 0:03:00]} 7. Be2 {[%clk 0:03:02]}  Be7 {[%clk 0:02:59]} 8. O-O {[%clk 0:03:03]}  O-O {[%clk 0:02:58]} 9. Qd2 {[%clk 0:03:03]}  Nc6 {[%clk 0:02:49]} 10. Rad1 {[%clk 0:03:03]}  Bd7 {[%clk 0:02:44]} 11. Rfe1 {[%clk 0:03:01]}  Rc8 {[%clk 0:02:41]} 12. Kh1 {[%clk 0:03:01]}  b5 {[%clk 0:02:18]} 13. a3 {[%clk 0:02:59]}  Qb6 {[%clk 0:02:09]} 14. Nxc6 {[%clk 0:02:56]}  Rxc6 {[%clk 0:02:09]} 15. e5 {[%clk 0:02:49]}  dxe5 {[%clk 0:01:48]} 16. Bxf6 {[%clk 0:02:48]}  Rd6 {[%clk 0:01:48]} 17. Bxe7 {[%clk 0:02:38]}  Rxd2 {[%clk 0:01:46]} 18. Rxd2 {[%clk 0:02:39]}  Qxf2 {[%clk 0:01:30]} 19. Rf1 {[%clk 0:02:38]}  Qe3 {[%clk 0:01:25]} 20. Rd3 {[%clk 0:02:32]}  Qa7 {[%clk 0:01:09]} 21. Bxf8 {[%clk 0:02:31]}  Kxf8 {[%clk 0:01:09]} 22. Rfd1 {[%clk 0:02:11]}  Bc6 {[%clk 0:01:08]} 23. Bf3 {[%clk 0:02:10]}  Qb7 {[%clk 0:00:55]} 24. Rd8+ {[%clk 0:01:54]}  Ke7 {[%clk 0:00:53]} 25. R8d7+ {[%clk 0:01:50]}  Qxd7 {[%clk 0:00:53]} 26. Rxd7+ {[%clk 0:01:50]}  Kxd7 {[%clk 0:00:51]} 27. Kg1 {[%clk 0:01:36]}  f5 {[%clk 0:00:49]} 28. Kf2 {[%clk 0:01:36]}  e4 {[%clk 0:00:46]} 29. Be2 {[%clk 0:01:36]}  Kd6 {[%clk 0:00:45]} 30. g3 {[%clk 0:01:36]}  Kc5 {[%clk 0:00:45]} 31. Ke3 {[%clk 0:01:35]}  e5 {[%clk 0:00:43]} 32. b4+ {[%clk 0:00:57]}  Kd6 {[%clk 0:00:34]} 33. Na2 {[%clk 0:00:58]}  g5 {[%clk 0:00:33]} 34. h3 {[%clk 0:00:44]}  f4+ {[%clk 0:00:33]} 35. gxf4 {[%clk 0:00:45]}  exf4+ {[%clk 0:00:32]} 36. Kf2 {[%clk 0:00:44]}  Ke5 {[%clk 0:00:32]} 37. c3 {[%clk 0:00:42]}  Bd5 {[%clk 0:00:31]} 38. Nc1 {[%clk 0:00:41]}  Bf7 {[%clk 0:00:29]} 39. a4 {[%clk 0:00:31]}  Be6 {[%clk 0:00:28]} 40. axb5 {[%clk 0:00:27]}  axb5 {[%clk 0:00:26]} 41. Bg4 {[%clk 0:00:23]}  h5 {[%clk 0:00:17]} 42. Bxe6 {[%clk 0:00:22]}  Kxe6 {[%clk 0:00:17]} 43. Ne2 {[%clk 0:00:23]}  Ke5 {[%clk 0:00:17]} 44. Nd4 {[%clk 0:00:24]}  g4 {[%clk 0:00:16]} 45. hxg4 {[%clk 0:00:23]}  hxg4 {[%clk 0:00:16]} 46. Nxb5 {[%clk 0:00:11]}  e3+ {[%clk 0:00:17]} 47. Ke2 {[%clk 0:00:11]}  Ke4 {[%clk 0:00:16]} 48. Nd6+ {[%clk 0:00:12]}  Ke5 {[%clk 0:00:16]} 49. Nc4+ {[%clk 0:00:11]}  Ke4 {[%clk 0:00:17]} 50. Nd6+ {[%clk 0:00:03]}  Ke5 {[%clk 0:00:17]} 51. Nf7+ {[%clk 0:00:04]}  Kf5 {[%clk 0:00:16]} 52. Nh6+ {[%clk 0:00:03]}  Kg5 {[%clk 0:00:16]} 53. Nxg4 {[%clk 0:00:01]}  Kxg4 {[%clk 0:00:16]} 54. b5 {[%clk 0:00:02]}  Kg3 {[%clk 0:00:15]} 55. b6 {[%clk 0:00:02]}  f3+ {[%clk 0:00:16]} 56. Kxe3 {[%clk 0:00:03]}  f2 {[%clk 0:00:15]} 57. b7 {[%clk 0:00:04]}  f1=Q {[%clk 0:00:14]} 58. b8=Q+ {[%clk 0:00:05]}  Kg2 {[%clk 0:00:13]} 59. Qg8+ {[%clk 0:00:05]}  Kh3 {[%clk 0:00:13]} 60. Qh7+ {[%clk 0:00:05]}  Kg2 {[%clk 0:00:13]} 61. Qg6+ {[%clk 0:00:05]}  Kh2 {[%clk 0:00:13]} 62. Qh5+ {[%clk 0:00:05]}  Qh3+ {[%clk 0:00:14]} 63. Qxh3+ {[%clk 0:00:05]} 1-0


[Site "https://www.chess.com"]

[Event "Titled Tuesday Blitz April 4 Late 2023"]
[White "Skaric, Djuro"]
[Black "Michalski, Olaf"]
[WhiteFideId "934569"]
[BlackFideId "1106740"]
[WhiteElo "2282"]
[BlackElo "2173"]
[Result "1-0"]
[Round "06"]
[TimeControl "180+2"]
[Date "2023.04.04"]
[WhiteClock "0:01:58"]
[BlackClock "0:00:04"]

1. g3 {[%clk 0:03:00]}  d6 {[%clk 0:02:59]} 2. Bg2 {[%clk 0:03:00]}  e5 {[%clk 0:02:57]} 3. d3 {[%clk 0:03:01]}  f5 {[%clk 0:02:56]} 4. Nc3 {[%clk 0:03:01]}  Nf6 {[%clk 0:02:57]} 5. Nf3 {[%clk 0:03:00]}  Be7 {[%clk 0:02:57]} 6. O-O {[%clk 0:03:00]}  O-O {[%clk 0:02:58]} 7. e4 {[%clk 0:02:59]}  Qe8 {[%clk 0:02:57]} 8. exf5 {[%clk 0:02:58]}  Bxf5 {[%clk 0:02:55]} 9. Nh4 {[%clk 0:02:58]}  Bc8 {[%clk 0:02:51]} 10. f4 {[%clk 0:02:58]}  Bg4 {[%clk 0:02:31]} 11. Qe1 {[%clk 0:02:51]}  Nc6 {[%clk 0:02:25]} 12. h3 {[%clk 0:02:49]}  Bd7 {[%clk 0:02:15]} 13. fxe5 {[%clk 0:02:46]}  Nxe5 {[%clk 0:01:58]} 14. Nf5 {[%clk 0:02:38]}  Bc6 {[%clk 0:01:40]} 15. d4 {[%clk 0:02:28]}  Bxg2 {[%clk 0:01:21]} 16. Kxg2 {[%clk 0:02:27]}  Ng6 {[%clk 0:01:12]} 17. h4 {[%clk 0:02:16]}  Qc6+ {[%clk 0:00:43]} 18. d5 {[%clk 0:02:15]}  Nxd5 {[%clk 0:00:42]} 19. Qe6+ {[%clk 0:02:13]}  Rf7 {[%clk 0:00:18]} 20. Qxd5 {[%clk 0:02:13]}  Qxd5+ {[%clk 0:00:18]} 21. Nxd5 {[%clk 0:02:12]}  Bf8 {[%clk 0:00:17]} 22. Bf4 {[%clk 0:02:08]}  c6 {[%clk 0:00:16]} 23. Nde3 {[%clk 0:02:07]}  d5 {[%clk 0:00:11]} 24. h5 {[%clk 0:02:06]}  Nxf4+ {[%clk 0:00:10]} 25. Rxf4 {[%clk 0:02:05]}  g6 {[%clk 0:00:06]} 26. hxg6 {[%clk 0:02:02]}  hxg6 {[%clk 0:00:05]} 27. Rg4 {[%clk 0:02:02]}  Bc5 {[%clk 0:00:04]} 28. Rxg6+ {[%clk 0:02:00]}  Kf8 {[%clk 0:00:04]} 29. Rh1 {[%clk 0:01:58]} 1-0


[Site "https://www.chess.com"]

[Event "Titled Tuesday Blitz April 4 Late 2023"]
[White "Kohler, Aran"]
[Black "Steenbekkers, Franck"]
[WhiteFideId "1002856"]
[BlackFideId "1004220"]
[WhiteElo "2292"]
[BlackElo "1948"]
[Result "1-0"]
[Round "06"]
[TimeControl "180+2"]
[Date "2023.04.04"]
[WhiteClock "0:01:56"]
[BlackClock "0:02:05"]

1. e4 {[%clk 0:03:00]}  c5 {[%clk 0:02:49]} 2. Nc3 {[%clk 0:02:59]}  Nc6 {[%clk 0:02:47]} 3. f4 {[%clk 0:02:59]}  g6 {[%clk 0:02:45]} 4. a3 {[%clk 0:02:57]}  Bg7 {[%clk 0:02:45]} 5. Nf3 {[%clk 0:02:58]}  e6 {[%clk 0:02:41]} 6. Bc4 {[%clk 0:02:58]}  Nge7 {[%clk 0:02:41]} 7. d3 {[%clk 0:02:58]}  d5 {[%clk 0:02:40]} 8. Ba2 {[%clk 0:02:58]}  O-O {[%clk 0:02:38]} 9. O-O {[%clk 0:02:57]}  Rb8 {[%clk 0:02:36]} 10. Qe1 {[%clk 0:02:46]}  b5 {[%clk 0:02:35]} 11. f5 {[%clk 0:02:33]}  d4 {[%clk 0:02:24]} 12. Ne2 {[%clk 0:02:32]}  exf5 {[%clk 0:02:23]} 13. Bf4 {[%clk 0:02:28]}  Rb6 {[%clk 0:02:20]} 14. Qh4 {[%clk 0:02:22]}  fxe4 {[%clk 0:02:16]} 15. Ng5 {[%clk 0:02:16]}  h6 {[%clk 0:02:06]} 16. Nxf7 {[%clk 0:02:05]}  g5 {[%clk 0:02:05]} 17. Nxd8+ {[%clk 0:01:56]} 1-0


[Site "https://www.chess.com"]

[Event "Titled Tuesday Blitz April 4 Late 2023"]
[White "olga-belka"]
[Black "Vargas, Mauricio"]
[BlackFideId "4404572"]
[WhiteElo "2289"]
[BlackElo "1998"]
[Result "1-0"]
[Round "06"]
[TimeControl "180+2"]
[Date "2023.04.04"]
[WhiteClock "0:00:46"]
[BlackClock "0:00:04"]

1. e4 {[%clk 0:02:59]}  c5 {[%clk 0:02:51]} 2. Nf3 {[%clk 0:02:59]}  d6 {[%clk 0:02:26]} 3. Bb5+ {[%clk 0:02:57]}  Nd7 {[%clk 0:02:18]} 4. O-O {[%clk 0:02:56]}  a6 {[%clk 0:02:06]} 5. Bd3 {[%clk 0:02:55]}  g6 {[%clk 0:01:58]} 6. c3 {[%clk 0:02:54]}  Bg7 {[%clk 0:01:58]} 7. a4 {[%clk 0:02:53]}  b6 {[%clk 0:01:57]} 8. Bc2 {[%clk 0:02:53]}  Bb7 {[%clk 0:01:57]} 9. d4 {[%clk 0:02:53]}  cxd4 {[%clk 0:01:49]} 10. cxd4 {[%clk 0:02:52]}  Rc8 {[%clk 0:01:50]} 11. Nc3 {[%clk 0:02:52]}  Bf6 {[%clk 0:01:40]} 12. Re1 {[%clk 0:02:47]}  Bg7 {[%clk 0:01:38]} 13. Bf4 {[%clk 0:02:42]}  Ngf6 {[%clk 0:01:30]} 14. e5 {[%clk 0:02:36]}  dxe5 {[%clk 0:01:29]} 15. dxe5 {[%clk 0:02:33]}  Nh5 {[%clk 0:01:25]} 16. Bg5 {[%clk 0:02:25]}  h6 {[%clk 0:01:24]} 17. Bh4 {[%clk 0:02:17]}  Nf4 {[%clk 0:01:21]} 18. Bg3 {[%clk 0:02:10]}  Ne6 {[%clk 0:01:20]} 19. Nd4 {[%clk 0:01:53]}  Nxd4 {[%clk 0:01:16]} 20. Qxd4 {[%clk 0:01:52]}  O-O {[%clk 0:01:08]} 21. Qh4 {[%clk 0:01:49]}  Rc5 {[%clk 0:00:55]} 22. e6 {[%clk 0:01:38]}  Nf6 {[%clk 0:00:42]} 23. exf7+ {[%clk 0:01:31]}  Rxf7 {[%clk 0:00:28]} 24. Bxg6 {[%clk 0:01:28]}  Rf8 {[%clk 0:00:19]} 25. Rad1 {[%clk 0:01:27]}  Qc8 {[%clk 0:00:16]} 26. Rxe7 {[%clk 0:01:22]}  Qc6 {[%clk 0:00:13]} 27. f3 {[%clk 0:01:15]}  Rxc3 {[%clk 0:00:13]} 28. bxc3 {[%clk 0:01:09]}  Qc5+ {[%clk 0:00:14]} 29. Bf2 {[%clk 0:01:03]}  Qxe7 {[%clk 0:00:15]} 30. Bxb6 {[%clk 0:00:57]}  Rd8 {[%clk 0:00:16]} 31. Rxd8+ {[%clk 0:00:55]}  Qxd8 {[%clk 0:00:17]} 32. Bxd8 {[%clk 0:00:55]}  Nd5 {[%clk 0:00:10]} 33. Qc4 {[%clk 0:00:48]}  Kf8 {[%clk 0:00:04]} 34. Be4 {[%clk 0:00:46]} 1-0


[Site "https://www.chess.com"]

[Event "Titled Tuesday Blitz April 4 Late 2023"]
[White "Winkels, Marcel"]
[Black "Zampronha, Wladimir Camilo"]
[WhiteFideId "1003887"]
[BlackFideId "2103087"]
[WhiteElo "1900"]
[BlackElo "2176"]
[Result "0-1"]
[Round "06"]
[TimeControl "180+2"]
[Date "2023.04.04"]
[WhiteClock "0:01:11"]
[BlackClock "0:02:07"]

1. d4 {[%clk 0:03:00]}  Nf6 {[%clk 0:02:59]} 2. Nc3 {[%clk 0:02:57]}  d5 {[%clk 0:02:57]} 3. Bf4 {[%clk 0:02:58]}  a6 {[%clk 0:02:57]} 4. e3 {[%clk 0:02:53]}  e6 {[%clk 0:02:57]} 5. g4 {[%clk 0:02:50]}  c5 {[%clk 0:02:58]} 6. g5 {[%clk 0:02:49]}  cxd4 {[%clk 0:02:49]} 7. exd4 {[%clk 0:02:47]}  Nfd7 {[%clk 0:02:49]} 8. Nf3 {[%clk 0:02:30]}  Qb6 {[%clk 0:02:46]} 9. Qd2 {[%clk 0:02:18]}  Qxb2 {[%clk 0:02:40]} 10. Rb1 {[%clk 0:02:17]}  Qa3 {[%clk 0:02:41]} 11. Rb3 {[%clk 0:02:10]}  Qa5 {[%clk 0:02:39]} 12. Bd3 {[%clk 0:01:51]}  Nc6 {[%clk 0:02:39]} 13. O-O {[%clk 0:01:49]}  Be7 {[%clk 0:02:34]} 14. Qe3 {[%clk 0:01:29]}  O-O {[%clk 0:02:28]} 15. Ne5 {[%clk 0:01:28]}  Ndxe5 {[%clk 0:02:24]} 16. Bxe5 {[%clk 0:01:27]}  Nxe5 {[%clk 0:02:20]} 17. dxe5 {[%clk 0:01:17]}  Qc7 {[%clk 0:02:09]} 18. f4 {[%clk 0:01:11]}  Bc5 {[%clk 0:02:07]} 0-1


[Site "https://www.chess.com"]

[Event "Titled Tuesday Blitz April 4 Late 2023"]
[White "Lock, Gavin R"]
[Black "Bacallao Alonso, Yusnel"]
[WhiteFideId "408646"]
[BlackFideId "3507416"]
[WhiteElo "2104"]
[BlackElo "2561"]
[Result "0-1"]
[Round "06"]
[TimeControl "180+2"]
[Date "2023.04.04"]
[WhiteClock "0:00:09"]
[BlackClock "0:00:08"]

1. e4 {[%clk 0:03:00]}  c6 {[%clk 0:02:59]} 2. d4 {[%clk 0:03:00]}  d5 {[%clk 0:03:00]} 3. exd5 {[%clk 0:03:01]}  cxd5 {[%clk 0:03:00]} 4. Bd3 {[%clk 0:03:02]}  Nc6 {[%clk 0:03:00]} 5. c3 {[%clk 0:03:01]}  Qc7 {[%clk 0:03:00]} 6. h3 {[%clk 0:03:00]}  g6 {[%clk 0:03:00]} 7. Nf3 {[%clk 0:03:00]}  Bf5 {[%clk 0:03:00]} 8. O-O {[%clk 0:02:59]}  Nf6 {[%clk 0:03:00]} 9. Re1 {[%clk 0:02:56]}  Bxd3 {[%clk 0:02:59]} 10. Qxd3 {[%clk 0:02:57]}  Bg7 {[%clk 0:02:59]} 11. Be3 {[%clk 0:02:55]}  O-O {[%clk 0:02:57]} 12. Nbd2 {[%clk 0:02:56]}  Rab8 {[%clk 0:02:56]} 13. a4 {[%clk 0:02:55]}  e6 {[%clk 0:02:55]} 14. g3 {[%clk 0:02:54]}  Rbc8 {[%clk 0:02:52]} 15. Bf4 {[%clk 0:02:53]}  Qd8 {[%clk 0:02:49]} 16. Kg2 {[%clk 0:02:49]}  Nd7 {[%clk 0:02:47]} 17. h4 {[%clk 0:02:45]}  h6 {[%clk 0:02:31]} 18. Nf1 {[%clk 0:02:14]}  Nf6 {[%clk 0:02:26]} 19. Ne5 {[%clk 0:02:08]}  Nxe5 {[%clk 0:02:20]} 20. Bxe5 {[%clk 0:02:08]}  h5 {[%clk 0:02:17]} 21. Nd2 {[%clk 0:01:58]}  Ng4 {[%clk 0:02:10]} 22. Bxg7 {[%clk 0:01:56]}  Kxg7 {[%clk 0:02:10]} 23. a5 {[%clk 0:01:48]}  Qf6 {[%clk 0:02:03]} 24. Qf3 {[%clk 0:01:45]}  Qf5 {[%clk 0:02:00]} 25. Qxf5 {[%clk 0:01:40]}  gxf5 {[%clk 0:02:01]} 26. Nb3 {[%clk 0:01:32]}  Nf6 {[%clk 0:01:58]} 27. Nc5 {[%clk 0:01:31]}  Rc7 {[%clk 0:01:58]} 28. f3 {[%clk 0:01:28]}  Nd7 {[%clk 0:01:46]} 29. Nd3 {[%clk 0:01:26]}  Kh6 {[%clk 0:01:36]} 30. Kf2 {[%clk 0:01:25]}  Rg8 {[%clk 0:01:36]} 31. Ra3 {[%clk 0:01:07]}  Kg7 {[%clk 0:00:35]} 32. Rb3 {[%clk 0:01:05]}  Rgc8 {[%clk 0:00:27]} 33. Nf4 {[%clk 0:01:04]}  Nf6 {[%clk 0:00:27]} 34. Ra1 {[%clk 0:01:01]}  Kh6 {[%clk 0:00:14]} 35. Ra4 {[%clk 0:00:48]}  Ne8 {[%clk 0:00:14]} 36. Nd3 {[%clk 0:00:44]}  Nd6 {[%clk 0:00:14]} 37. Nc5 {[%clk 0:00:40]}  Re8 {[%clk 0:00:11]} 38. Rab4 {[%clk 0:00:38]}  Ree7 {[%clk 0:00:11]} 39. Ra4 {[%clk 0:00:31]}  f6 {[%clk 0:00:08]} 40. Ra1 {[%clk 0:00:29]}  e5 {[%clk 0:00:09]} 41. Nd3 {[%clk 0:00:19]}  f4 {[%clk 0:00:05]} 42. gxf4 {[%clk 0:00:17]}  e4 {[%clk 0:00:05]} 43. Nc5 {[%clk 0:00:16]}  e3+ {[%clk 0:00:05]} 44. Ke2 {[%clk 0:00:16]}  Nc4 {[%clk 0:00:05]} 45. Rg1 {[%clk 0:00:15]}  b6 {[%clk 0:00:06]} 46. axb6 {[%clk 0:00:15]}  axb6 {[%clk 0:00:07]} 47. Nd3 {[%clk 0:00:15]}  Rg7 {[%clk 0:00:07]} 48. Rxg7 {[%clk 0:00:15]}  Rxg7 {[%clk 0:00:07]} 49. Nb4 {[%clk 0:00:12]}  Rg2+ {[%clk 0:00:07]} 50. Ke1 {[%clk 0:00:11]}  Rg1+ {[%clk 0:00:07]} 51. Ke2 {[%clk 0:00:11]}  Rg2+ {[%clk 0:00:08]} 52. Ke1 {[%clk 0:00:11]}  Nd2 {[%clk 0:00:08]} 53. Ra3 {[%clk 0:00:11]}  Nxf3+ {[%clk 0:00:08]} 54. Kf1 {[%clk 0:00:09]}  Rf2# {[%clk 0:00:08]} 0-1


[Site "https://www.chess.com"]